fUSD/lending_fUSD_20250521
["ID","MTS","AMOUNT","RATE_DAILY","PERIOD"]
[361806054,1747821032257,-211.0,0.00030225,2]
[361806055,1747821032267,-302.15,0.0003072,2]
[361806056,1747821032277,-305.74,0.0003072,2]
[361806057,1747821032286,-81.55302573,0.0003072,2]
[361806058,1747821032299,-219.01697427,0.0003072,2]
[361806059,1747821032308,-300.96,0.0003072,2]
[361806060,1747821032318,-304.94,0.0003072,2]
[361806061,1747821032328,-230.73767209,0.00030742,2]
[361806071,1747821037395,-395.0,0.00030719,2]
[361806072,1747821037405,-69.83232791,0.00030742,2]
[361806073,1747821037416,-300.59,0.00030822,2]
[361806074,1747821037426,-303.76,0.00030822,2]
[361806075,1747821037436,-5261.3,0.00030822,10]
[361806076,1747821037447,-1000.0,0.00030894,2]
[361806077,1747821037456,-248.26732974,0.000309,23]
[361806078,1747821037466,-305.93,0.00030945,2]
[361806079,1747821037476,-304.6,0.00030945,2]
[361806080,1747821037486,-200.0,0.00030946,2]
[361806081,1747821037496,-305.04,0.00031025,2]
[361806082,1747821037505,-302.95,0.00031025,2]
[361806083,1747821037515,-571.54,0.00031129,2]
[361806084,1747821037526,-1285.436796,0.00031217,2]
[361806085,1747821037539,-500.0,0.00031224,7]
[361806086,1747821037549,-150.0,0.00031226,2]
[361806087,1747821037558,-23900.0,0.00031227,2]
[361806088,1747821037573,-422.9,0.00031227,2]
[361806089,1747821037584,-554.21,0.00031705,2]
[361806090,1747821037594,-200.0,0.00031821,2]
[361806091,1747821037605,-476.96,0.00031874,120]
[361806093,1747821037615,-656.85822467,0.00031961,2]
[361806095,1747821037625,-10000.0,0.00032,5]
[361806097,1747821037634,-35147.0,0.00032182,2]
[361806099,1747821037644,-656.85822467,0.00032255,2]
[361806101,1747821037654,-150.06,0.00032432,2]
[361806103,1747821037664,-656.85822467,0.00032499,2]
[361806105,1747821037674,-4383.54,0.0003255,2]
[361806107,1747821037684,-248.26732974,0.00032567,27]
[361806109,1747821037694,-873.03380299,0.00032571,7]
[361806111,1747821037704,-656.8582247,0.00032761,2]
[361806113,1747821037713,-169.13202046,0.00032766,2]
[361806115,1747821037724,-258.54348943,0.00032773,15]
[361806117,1747821037734,-209.18838564,0.00032776,2]
[361806119,1747821037744,-11663.0,0.00032849,2]
[361806121,1747821037753,-2000.000998,0.0003285,30]
[361806123,1747821037763,-47451.8100597,0.00032855,21]
[361806125,1747821037773,-33499.2879916,0.00032856,2]
[361806127,1747821037783,-220.76,0.00032856,2]
[361806129,1747821037793,-221.76425913,0.00032865,2]
[361806131,1747821037803,-500.0,0.00032865,2]
[361806133,1747821037812,-500.0,0.00032865,2]
[361806135,1747821037822,-500.0,0.00032865,2]
[361806137,1747821037831,-500.0,0.00032865,2]
[361806139,1747821037841,-500.0,0.00032865,2]
[361806141,1747821037851,-500.0,0.00032865,2]
[361806143,1747821037861,-500.0,0.00032865,2]
[361806145,1747821037871,-500.0,0.00032865,2]
[361806147,1747821037882,-500.0,0.00032865,2]
[361806149,1747821037892,-500.0,0.00032865,2]
[361806151,1747821037902,-500.0,0.00032865,2]
[361806153,1747821037912,-500.0,0.00032865,2]
[361806155,1747821037922,-500.0,0.00032865,2]
[361806157,1747821037931,-500.0,0.00032865,2]
[361806159,1747821037941,-233.38043277,0.00032865,2]
[361806160,1747821037951,-500.0,0.00032865,2]
[361806161,1747821037961,-500.0,0.00032865,2]
[361806162,1747821037971,-500.0,0.00032865,2]
[361806163,1747821037981,-500.0,0.00032865,2]
[361806164,1747821037991,-500.0,0.00032865,2]
[361806165,1747821038001,-500.0,0.00032865,2]
[361806166,1747821038011,-500.0,0.00032865,2]
[361806167,1747821038020,-500.0,0.00032865,2]
[361806168,1747821038030,-500.0,0.00032865,2]
[361806169,1747821038040,-500.0,0.00032865,2]
[361806170,1747821038050,-500.0,0.00032865,2]
[361806171,1747821038060,-500.0,0.00032865,2]
[361806172,1747821038070,-500.0,0.00032865,2]
[361806173,1747821038080,-500.0,0.00032865,2]
[361806174,1747821038090,-597.69426179,0.00032865,2]
[361806175,1747821038099,-500.0,0.00032865,2]
[361806176,1747821038109,-500.0,0.00032865,2]
[361806177,1747821038119,-500.0,0.00032865,2]
[361806178,1747821038129,-500.0,0.00032865,2]
[361806179,1747821038139,-500.0,0.00032865,2]
[361806180,1747821038148,-11166.4293305,0.00032865,2]
[361806181,1747821038158,-10056.62872154,0.00032866,2]
[361806182,1747821038175,-2799.27587224,0.00032866,2]
[361806183,1747821038215,-592.8,0.00032866,2]
[361806185,1747821039680,-252.19,0.00032866,2]
[361806200,1747821043325,-142.80952788,0.00031266,120]
[361806201,1747821043534,-157.38047212,0.00031266,120]
[361806202,1747821043544,-30964.82272832,0.00032866,2]
[361806203,1747821043554,-220.76,0.00032866,2]
[361806204,1747821043563,-166916.38444208,0.00032866,2]
[361806205,1747821043574,-7705.80501196,0.00032866,2]
[361806207,1747821043590,-15207.10916496,0.00032866,2]
[361806208,1747821043599,-14057.8960413,0.00032866,2]
[361806210,1747821043609,-298.72054978,0.00032866,2]
[361806213,1747821043619,-182.45307316,0.00032873,5]
[361806215,1747821043629,-193.6198292,0.00032873,5]
[361806217,1747821043638,-626.97708266,0.00032873,5]
[361806220,1747821043648,-508.21366437,0.00032873,5]
[361806223,1747821043659,-501.12588274,0.00032873,5]
[361806226,1747821043669,-150.0,0.00032875,2]
[361806229,1747821043678,-150.0,0.00032875,2]
[361806231,1747821043687,-500.0,0.00032875,2]
[361806233,1747821043696,-228.46718706,0.00032875,2]
[361806234,1747821043706,-500.0,0.00032875,2]
[361806237,1747821043715,-150.0,0.00032875,2]
[361806239,1747821043724,-158.69787781,0.00032875,2]
[361806241,1747821043733,-150.0,0.00032875,2]
[361806242,1747821043743,-257.79538667,0.00032875,2]
[361806243,1747821043752,-153.70761382,0.00032875,2]
[361806244,1747821043760,-189.12082395,0.00032875,2]
[361806245,1747821043771,-405.9348391,0.00032875,2]
[361806246,1747821043779,-199.71780534,0.00032875,2]
[361806249,1747821043788,-201.27617353,0.00032875,2]
[361806253,1747821043798,-173.63645203,0.00032876,2]
[361806255,1747821043809,-94346.41502235,0.00032876,2]
[361806257,1747821043818,-154.306515,0.00032876,7]
[361806259,1747821043827,-151.0,0.00032876,7]
[361806261,1747821043836,-151.0,0.00032876,7]
[361806263,1747821043845,-151.0,0.00032876,7]
[361806264,1747821043854,-151.0,0.00032876,7]
[361806265,1747821043863,-151.742381,0.00032876,7]
[361806268,1747821043872,-239.72,0.00032876,5]
[361806270,1747821043881,-151.0,0.00032876,7]
[361806272,1747821043891,-153.267968,0.00032876,7]
[361806274,1747821043900,-151.76759,0.00032876,7]
[361806276,1747821043909,-151.15241,0.00032876,7]
[361806277,1747821043919,-151.0,0.00032876,7]
[361806278,1747821043928,-151.0,0.00032876,7]
[361806279,1747821043937,-151.927932,0.00032876,7]
[361806280,1747821043946,-151.865181,0.00032876,7]
[361806281,1747821043957,-205.066588,0.00032876,7]
[361806282,1747821043967,-420.0,0.00032876,5]
[361806283,1747821043976,-151.0,0.00032876,7]
[361806284,1747821043985,-420.0,0.00032876,5]
[361806285,1747821043994,-151.0,0.00032876,7]
[361806286,1747821044003,-151.0,0.00032876,7]
[361806287,1747821044012,-151.0,0.00032876,7]
[361806288,1747821044022,-151.0,0.00032876,7]
[361806289,1747821044032,-420.0,0.00032876,5]
[361806290,1747821044042,-420.0,0.00032876,5]
[361806291,1747821044051,-420.0,0.00032876,5]
[361806292,1747821044061,-420.0,0.00032876,5]
[361806293,1747821044070,-420.0,0.00032876,5]
[361806294,1747821044080,-420.0,0.00032876,5]
[361806295,1747821044090,-420.0,0.00032876,5]
[361806296,1747821044099,-293.056354,0.00032876,7]
[361806297,1747821044108,-236.009418,0.00032876,7]
[361806298,1747821044117,-151.0,0.00032876,7]
[361806299,1747821044127,-420.0,0.00032876,5]
[361806300,1747821044136,-420.0,0.00032876,5]
[361806301,1747821044145,-420.0,0.00032876,5]
[361806302,1747821044155,-151.0,0.00032876,7]
[361806303,1747821044165,-420.0,0.00032876,5]
[361806304,1747821044174,-420.0,0.00032876,2]
[361806305,1747821044183,-420.0,0.00032876,5]
[361806306,1747821044193,-420.0,0.00032876,5]
[361806307,1747821044202,-420.0,0.00032876,5]
[361806308,1747821044211,-420.0,0.00032876,5]
[361806309,1747821044221,-420.0,0.00032876,5]
[361806310,1747821044230,-420.0,0.00032876,5]
[361806311,1747821044239,-420.0,0.00032876,5]
[361806312,1747821044249,-420.0,0.00032876,5]
[361806313,1747821044259,-420.0,0.00032876,5]
[361806314,1747821044269,-420.0,0.00032876,5]
[361806315,1747821044279,-420.0,0.00032876,5]
[361806316,1747821044290,-420.0,0.00032876,5]
[361806317,1747821044299,-365.47067373,0.00032876,5]
[361806318,1747821044309,-151.0,0.00032876,7]
[361806319,1747821044318,-151.0,0.00032876,7]
[361806320,1747821044327,-151.0,0.00032876,7]
[361806321,1747821044337,-420.0,0.00032876,5]
[361806323,1747821044346,-420.0,0.00032876,5]
[361806324,1747821044355,-444.58086298,0.00032876,5]
[361806326,1747821044365,-420.0,0.00032876,5]
[361806327,1747821044374,-420.0,0.00032876,5]
[361806328,1747821044383,-400.6889744,0.00032876,5]
[361806329,1747821044392,-420.0,0.00032876,5]
[361806330,1747821044402,-420.0,0.00032876,5]
[361806331,1747821044411,-420.0,0.00032876,5]
[361806332,1747821044421,-212.83457759,0.00032876,5]
[361806333,1747821044430,-420.0,0.00032876,5]
[361806334,1747821044440,-263.03611803,0.00032876,5]
[361806335,1747821044450,-401.17412168,0.00032876,5]
[361806336,1747821044459,-420.0,0.00032876,5]
[361806337,1747821044469,-420.0,0.00032876,5]
[361806338,1747821044478,-420.0,0.00032876,5]
[361806339,1747821044487,-151.0,0.00032876,7]
[361806340,1747821044499,-152.109876,0.00032876,7]
[361806341,1747821044508,-420.0,0.00032876,5]
[361806342,1747821044518,-151.0,0.00032876,7]
[361806343,1747821044528,-420.0,0.00032876,5]
[361806344,1747821044542,-151.0,0.00032876,7]
[361806345,1747821044552,-151.0,0.00032876,7]
[361806346,1747821044560,-151.0,0.00032876,7]
[361806347,1747821044570,-420.0,0.00032876,5]
[361806348,1747821044580,-490.71944115,0.00032876,5]
[361806349,1747821044589,-420.0,0.00032876,5]
[361806350,1747821044598,-420.0,0.00032876,5]
[361806351,1747821044607,-420.0,0.00032876,5]
[361806352,1747821044617,-420.0,0.00032876,5]
[361806353,1747821044627,-151.0,0.00032876,7]
[361806354,1747821044637,-151.0,0.00032876,7]
[361806355,1747821044646,-151.0,0.00032876,7]
[361806356,1747821044656,-151.0,0.00032876,7]
[361806357,1747821044665,-151.0,0.00032876,7]
[361806358,1747821044674,-151.0,0.00032876,7]
[361806359,1747821044683,-420.0,0.00032876,5]
[361806360,1747821044693,-151.0,0.00032876,7]
[361806361,1747821044702,-151.0,0.00032876,7]
[361806362,1747821044712,-151.0,0.00032876,7]
[361806363,1747821044721,-151.0,0.00032876,7]
[361806364,1747821044730,-420.0,0.00032876,5]
[361806365,1747821044741,-420.0,0.00032876,5]
[361806366,1747821044750,-185.74039813,0.00032876,5]
[361806367,1747821044759,-420.0,0.00032876,5]
[361806368,1747821044769,-158.21395899,0.00032876,5]
[361806369,1747821044779,-150.0,0.00032876,5]
[361806370,1747821044789,-200.0,0.00032876,2]
[361806371,1747821044799,-420.0,0.00032876,5]
[361806372,1747821044808,-150.0,0.00032876,5]
[361806373,1747821044817,-150.0,0.00032876,5]
[361806374,1747821044826,-420.0,0.00032876,5]
[361806375,1747821044835,-420.0,0.00032876,5]
[361806376,1747821044844,-420.0,0.00032876,5]
[361806377,1747821044853,-420.0,0.00032876,5]
[361806378,1747821044863,-155.212731,0.00032876,7]
[361806379,1747821044872,-465.43331329,0.00032876,5]
[361806380,1747821044882,-420.0,0.00032876,5]
[361806381,1747821044891,-420.0,0.00032876,5]
[361806382,1747821044900,-420.0,0.00032876,5]
[361806383,1747821044909,-420.0,0.00032876,5]
[361806384,1747821044919,-420.0,0.00032876,5]
[361806385,1747821044928,-693.35,0.00032876,5]
[361806386,1747821044938,-1017.6,0.00032876,5]
[361806387,1747821044947,-1054.82,0.00032876,5]
[361806388,1747821044956,-420.0,0.00032876,5]
[361806389,1747821044966,-420.0,0.00032876,5]
[361806390,1747821044975,-490.68,0.00032876,5]
[361806391,1747821044985,-1687.37,0.00032876,5]
[361806392,1747821044994,-420.0,0.00032876,5]
[361806393,1747821045003,-420.0,0.00032876,5]
[361806394,1747821045013,-444.97,0.00032876,5]
[361806395,1747821045022,-971.35,0.00032876,5]
[361806396,1747821045032,-420.0,0.00032876,5]
[361806397,1747821045042,-591.2,0.00032876,5]
[361806398,1747821045051,-420.0,0.00032876,5]
[361806399,1747821045061,-420.0,0.00032876,5]
[361806400,1747821045070,-420.0,0.00032876,5]
[361806401,1747821045080,-420.0,0.00032876,5]
[361806402,1747821045089,-420.0,0.00032876,5]
[361806403,1747821045099,-420.0,0.00032876,5]
[361806404,1747821045108,-294.07912722,0.00032876,5]
[361806405,1747821045117,-817.75,0.00032876,5]
[361806406,1747821045126,-420.0,0.00032876,2]
[361806407,1747821045136,-434.77,0.00032876,5]
[361806408,1747821045145,-197.454316,0.00032876,7]
[361806409,1747821045154,-265.23022192,0.00032876,5]
[361806410,1747821045163,-420.0,0.00032876,5]
[361806411,1747821045172,-420.0,0.00032876,5]
[361806412,1747821045181,-420.0,0.00032876,5]
[361806413,1747821045190,-420.0,0.00032876,5]
[361806414,1747821045200,-420.0,0.00032876,5]
[361806415,1747821045209,-433.81,0.00032876,5]
[361806417,1747821045218,-1209.27,0.00032876,5]
[361806418,1747821045228,-437.73,0.00032876,5]
[361806419,1747821045237,-151.0,0.00032876,7]
[361806420,1747821045247,-420.0,0.00032876,5]
[361806421,1747821045256,-236.623604,0.00032876,7]
[361806422,1747821045265,-151.0,0.00032876,7]
[361806424,1747821045274,-151.0,0.00032876,7]
[361806426,1747821045284,-151.0,0.00032876,7]
[361806427,1747821045294,-151.0,0.00032876,7]
[361806428,1747821045305,-496.48,0.00032876,5]
[361806429,1747821045314,-420.0,0.00032876,5]
[361806430,1747821045323,-1587.75,0.00032876,5]
[361806431,1747821045332,-151.0,0.00032876,7]
[361806432,1747821045342,-151.0,0.00032876,7]
[361806433,1747821045352,-420.0,0.00032876,5]
[361806434,1747821045361,-151.0,0.00032876,7]
[361806435,1747821045371,-420.0,0.00032876,5]
[361806436,1747821045380,-420.0,0.00032876,5]
[361806437,1747821045389,-667.45,0.00032876,5]
[361806438,1747821045398,-873.04,0.00032876,5]
[361806439,1747821045407,-420.0,0.00032876,5]
[361806440,1747821045418,-1243.89,0.00032876,5]
[361806441,1747821045427,-420.0,0.00032876,5]
[361806442,1747821045436,-420.0,0.00032876,5]
[361806443,1747821045446,-499.15421248,0.00032876,5]
[361806444,1747821045455,-762.84,0.00032876,5]
[361806445,1747821045464,-420.0,0.00032876,5]
[361806446,1747821045474,-587.2,0.00032876,5]
[361806447,1747821045483,-420.0,0.00032876,5]
[361806448,1747821045492,-420.0,0.00032876,5]
[361806449,1747821045501,-420.0,0.00032876,5]
[361806450,1747821045510,-865.54,0.00032876,5]
[361806451,1747821045520,-757.04,0.00032876,5]
[361806452,1747821045530,-420.0,0.00032876,5]
[361806453,1747821045543,-1514.01,0.00032876,5]
[361806454,1747821045552,-420.0,0.00032876,5]
[361806455,1747821045561,-420.0,0.00032876,5]
[361806456,1747821045570,-656.08,0.00032876,5]
[361806457,1747821045580,-420.0,0.00032876,5]
[361806458,1747821045589,-789.23,0.00032876,5]
[361806459,1747821045598,-151.0,0.00032876,7]
[361806460,1747821045608,-151.0,0.00032876,7]
[361806461,1747821045619,-420.0,0.00032876,5]
[361806462,1747821045628,-554.47,0.00032876,5]
[361806463,1747821045639,-151.0,0.00032876,7]
[361806464,1747821045649,-152.444476,0.00032876,7]
[361806465,1747821045659,-629.47,0.00032876,5]
[361806466,1747821045668,-420.0,0.00032876,5]
[361806467,1747821045677,-420.0,0.00032876,5]
[361806468,1747821045687,-725.21,0.00032876,5]
[361806469,1747821045696,-725.21,0.00032876,5]
[361806470,1747821045706,-420.0,0.00032876,5]
[361806472,1747821045715,-393.32942685,0.00032876,5]
[361806473,1747821045724,-489.13,0.00032876,5]
[361806475,1747821045733,-420.0,0.00032876,5]
[361806476,1747821045742,-672.41,0.00032876,5]
[361806477,1747821045752,-420.0,0.00032876,5]
[361806478,1747821045762,-457.44,0.00032876,5]
[361806479,1747821045771,-420.0,0.00032876,5]
[361806480,1747821045780,-420.0,0.00032876,5]
[361806481,1747821045789,-2623.24,0.00032876,5]
[361806482,1747821045799,-420.0,0.00032876,5]
[361806483,1747821045808,-420.0,0.00032876,5]
[361806484,1747821045818,-420.0,0.00032876,5]
[361806485,1747821045827,-1156.21,0.00032876,5]
[361806486,1747821045837,-2248.21,0.00032876,5]
[361806487,1747821045846,-658.12,0.00032876,5]
[361806488,1747821045855,-420.0,0.00032876,5]
[361806489,1747821045865,-420.0,0.00032876,5]
[361806490,1747821045874,-420.0,0.00032876,5]
[361806491,1747821045884,-420.0,0.00032876,5]
[361806492,1747821045897,-420.0,0.00032876,5]
[361806493,1747821045908,-1199.8,0.00032876,5]
[361806494,1747821045918,-420.0,0.00032876,5]
[361806495,1747821045927,-420.0,0.00032876,5]
[361806496,1747821045936,-584.58,0.00032876,5]
[361806497,1747821045946,-420.0,0.00032876,5]
[361806498,1747821045955,-420.0,0.00032876,5]
[361806499,1747821045966,-382.39668294,0.00032876,5]
[361806500,1747821045978,-420.0,0.00032876,5]
[361806501,1747821045988,-420.0,0.00032876,5]
[361806502,1747821045998,-420.0,0.00032876,5]
[361806503,1747821046008,-420.0,0.00032876,5]
[361806504,1747821046017,-772.53,0.00032876,5]
[361806505,1747821046027,-420.0,0.00032876,5]
[361806506,1747821046036,-420.0,0.00032876,5]
[361806507,1747821046045,-1205.84,0.00032876,5]
[361806508,1747821046055,-1369.73,0.00032876,5]
[361806509,1747821046064,-420.0,0.00032876,5]
[361806510,1747821046074,-420.0,0.00032876,5]
[361806511,1747821046084,-420.0,0.00032876,5]
[361806512,1747821046093,-420.0,0.00032876,5]
[361806513,1747821046105,-534.49,0.00032876,5]
[361806514,1747821046116,-420.0,0.00032876,5]
[361806515,1747821046126,-420.0,0.00032876,5]
[361806516,1747821046135,-420.0,0.00032876,5]
[361806517,1747821046145,-420.0,0.00032876,5]
[361806518,1747821046154,-548.8,0.00032876,5]
[361806519,1747821046164,-420.0,0.00032876,5]
[361806520,1747821046174,-420.0,0.00032876,5]
[361806521,1747821046183,-420.0,0.00032876,5]
[361806522,1747821046193,-1218.7,0.00032876,5]
[361806523,1747821046202,-1246.62,0.00032876,5]
[361806524,1747821046212,-420.0,0.00032876,5]
[361806525,1747821046222,-3535.99,0.00032876,5]
[361806526,1747821046232,-420.0,0.00032876,5]
[361806527,1747821046241,-420.0,0.00032876,5]
[361806528,1747821046251,-793.28,0.00032876,5]
[361806529,1747821046260,-420.0,0.00032876,5]
[361806530,1747821046270,-972.33,0.00032876,5]
[361806531,1747821046279,-420.0,0.00032876,5]
[361806532,1747821046289,-191.36103019,0.00032876,5]
[361806533,1747821046299,-420.0,0.00032876,5]
[361806534,1747821046310,-420.0,0.00032876,5]
[361806535,1747821046320,-420.0,0.00032876,5]
[361806536,1747821046614,-1359.97,0.00032876,5]
[361806537,1747821046624,-527.20581956,0.00032876,5]
[361806538,1747821046635,-420.0,0.00032876,5]
[361806539,1747821046644,-420.0,0.00032876,5]
[361806540,1747821046654,-420.0,0.00032876,5]
[361806541,1747821046664,-420.0,0.00032876,5]
[361806542,1747821046674,-779.75,0.00032876,5]
[361806543,1747821046683,-420.0,0.00032876,5]
[361806544,1747821046693,-420.0,0.00032876,5]
[361806545,1747821046703,-420.0,0.00032876,5]
[361806546,1747821046712,-631.51,0.00032876,5]
[361806547,1747821046721,-381.80512984,0.00032876,5]
[361806548,1747821046732,-420.0,0.00032876,5]
[361806549,1747821046741,-420.0,0.00032876,5]
[361806550,1747821046751,-420.0,0.00032876,5]
[361806551,1747821046760,-1482.18,0.00032876,5]
[361806552,1747821046770,-420.0,0.00032876,5]
[361806553,1747821046779,-420.0,0.00032876,5]
[361806554,1747821046789,-420.0,0.00032876,5]
[361806555,1747821046799,-420.0,0.00032876,5]
[361806556,1747821046808,-823.75,0.00032876,5]
[361806557,1747821046818,-420.0,0.00032876,5]
[361806558,1747821046827,-482.2,0.00032876,5]
[361806559,1747821046837,-420.0,0.00032876,5]
[361806560,1747821046847,-478.19,0.00032876,5]
[361806561,1747821046857,-496.59148068,0.00032876,5]
[361806562,1747821046867,-420.0,0.00032876,5]
[361806563,1747821046877,-420.0,0.00032876,5]
[361806564,1747821046887,-1566.88,0.00032876,5]
[361806565,1747821046897,-500.0,0.00032876,5]
[361806566,1747821046906,-420.0,0.00032876,5]
[361806567,1747821046916,-420.0,0.00032876,5]
[361806568,1747821046925,-420.0,0.00032876,5]
[361806569,1747821046935,-420.0,0.00032876,5]
[361806570,1747821046945,-420.0,0.00032876,5]
[361806571,1747821046955,-1419.31,0.00032876,5]
[361806572,1747821046965,-420.0,0.00032876,5]
[361806573,1747821046974,-420.0,0.00032876,5]
[361806574,1747821046984,-420.0,0.00032876,5]
[361806575,1747821046994,-420.0,0.00032876,5]
[361806576,1747821047004,-420.0,0.00032876,5]
[361806577,1747821047013,-653.97,0.00032876,5]
[361806578,1747821047024,-420.0,0.00032876,5]
[361806579,1747821047034,-151.0,0.00032876,7]
[361806580,1747821047043,-420.0,0.00032876,5]
[361806581,1747821047053,-1250.5,0.00032876,5]
[361806582,1747821047062,-420.0,0.00032876,5]
[361806583,1747821047072,-420.0,0.00032876,5]
[361806584,1747821047083,-597.81,0.00032876,5]
[361806585,1747821047094,-420.0,0.00032876,5]
[361806586,1747821047104,-420.0,0.00032876,5]
[361806587,1747821047114,-500.0,0.00032876,5]
[361806588,1747821047124,-420.0,0.00032876,5]
[361806589,1747821047134,-420.0,0.00032876,5]
[361806590,1747821047143,-500.0,0.00032876,5]
[361806591,1747821047153,-500.0,0.00032876,5]
[361806592,1747821047164,-420.0,0.00032876,5]
[361806593,1747821047173,-500.0,0.00032876,5]
[361806594,1747821047183,-500.0,0.00032876,5]
[361806595,1747821047193,-500.0,0.00032876,5]
[361806596,1747821047202,-500.0,0.00032876,5]
[361806597,1747821047212,-420.0,0.00032876,5]
[361806598,1747821047222,-505.34800688,0.00032876,5]
[361806599,1747821047232,-420.0,0.00032876,5]
[361806600,1747821047242,-420.0,0.00032876,5]
[361806601,1747821047252,-1247.85,0.00032876,5]
[361806602,1747821047261,-420.0,0.00032876,5]
[361806603,1747821047271,-218.25436153,0.00032876,5]
[361806604,1747821047281,-669.83,0.00032876,5]
[361806605,1747821047290,-151.0,0.00032876,7]
[361806606,1747821047300,-151.0,0.00032876,7]
[361806607,1747821047310,-468.0807663,0.00032876,5]
[361806608,1747821047319,-420.0,0.00032876,5]
[361806609,1747821047329,-420.0,0.00032876,5]
[361806610,1747821047338,-1115.54,0.00032876,5]
[361806611,1747821047348,-420.0,0.00032876,5]
[361806612,1747821047357,-420.0,0.00032876,5]
[361806613,1747821047367,-420.0,0.00032876,5]
[361806614,1747821047376,-420.0,0.00032876,5]
[361806615,1747821047385,-420.0,0.00032876,5]
[361806616,1747821047394,-420.0,0.00032876,5]
[361806617,1747821047404,-1188.38,0.00032876,5]
[361806618,1747821047414,-647.85,0.00032876,5]
[361806619,1747821047423,-420.0,0.00032876,5]
[361806620,1747821047432,-420.0,0.00032876,5]
[361806621,1747821047442,-420.0,0.00032876,5]
[361806622,1747821047451,-692.11,0.00032876,5]
[361806623,1747821047461,-1464.65,0.00032876,5]
[361806624,1747821047470,-731.9,0.00032876,5]
[361806625,1747821047479,-737.73,0.00032876,5]
[361806626,1747821047489,-420.0,0.00032876,5]
[361806627,1747821047498,-475.36,0.00032876,5]
[361806628,1747821047508,-420.0,0.00032876,5]
[361806629,1747821047518,-309.99637115,0.00032876,5]
[361806630,1747821047529,-739.22,0.00032876,5]
[361806631,1747821047544,-420.0,0.00032876,5]
[361806632,1747821047554,-420.0,0.00032876,5]
[361806633,1747821047564,-420.0,0.00032876,5]
[361806634,1747821047574,-420.0,0.00032876,5]
[361806635,1747821047584,-1099.54,0.00032876,5]
[361806636,1747821047594,-420.0,0.00032876,5]
[361806637,1747821047603,-466.53,0.00032876,5]
[361806638,1747821047613,-420.0,0.00032876,5]
[361806639,1747821047623,-420.0,0.00032876,5]
[361806640,1747821047633,-1129.02,0.00032876,5]
[361806641,1747821047643,-420.0,0.00032876,5]
[361806642,1747821047653,-420.0,0.00032876,5]
[361806643,1747821047662,-1166.48,0.00032876,5]
[361806644,1747821047671,-435.43,0.00032876,5]
[361806645,1747821047681,-646.66,0.00032876,5]
[361806646,1747821047691,-522.98,0.00032876,5]
[361806647,1747821047700,-420.0,0.00032876,5]
[361806648,1747821047710,-420.0,0.00032876,5]
[361806649,1747821047719,-420.0,0.00032876,5]
[361806650,1747821047729,-1059.53,0.00032876,5]
[361806651,1747821047739,-420.0,0.00032876,5]
[361806652,1747821047749,-420.0,0.00032876,5]
[361806653,1747821047759,-829.49,0.00032876,5]
[361806654,1747821047768,-2219.55,0.00032876,5]